bitfinex-derivatives/quotes_SOLF0:USTF0_20260305
["timestamp","ask_amount","ask_price","bid_price","bid_amount"]
[1772743155702,3.79160556,89.379,89.331,3.60954184]
[1772743155900,3.51014158,89.37,89.331,3.60954184]
[1772743156196,3.51014158,89.37,89.32,3.51014158]
[1772743156197,7.30174714,89.37,89.32,3.51014158]
[1772743156397,3.79160556,89.369,89.317,3.60954184]
[1772743156593,3.79160556,89.369,89.31,3.51014158]
[1772743156799,3.79160556,89.349,89.301,3.60954184]
[1772743156999,3.79160556,89.349,89.31,3.51014158]
[1772743157402,3.79160556,89.349,89.301,3.60954184]
[1772743159308,3.79160556,89.348,89.283,3.60954184]
[1772743160002,3.79160556,89.348,89.286,10.079]
[1772743160306,3.79160556,89.348,89.261,3.60954184]
[1772743160898,3.79160556,89.338,89.278,3.60954184]
[1772743161504,9.45314958,89.33,89.234,3.60954184]
[1772743161707,3.79160556,89.329,89.234,3.60954184]
[1772743162206,3.79160556,89.316,89.254,3.60954184]
[1772743163603,9.46326011,89.33,89.239,3.60954184]
[1772743163604,3.79160556,89.309,89.239,3.60954184]
[1772743164110,3.79160556,89.294,89.239,3.60954184]
[1772743164800,3.79160556,89.294,89.241,3.60954184]
[1772743165509,3.79160556,89.312,89.255,3.60954184]
[1772743165808,3.79160556,89.312,89.241,3.60954184]
[1772743165809,3.79160556,89.349,89.291,3.60954184]
[1772743167111,3.79160556,89.364,89.301,3.60954184]
[1772743167807,3.79160556,89.364,89.302,3.60954184]
[1772743168002,3.79160556,89.364,89.29,9.46326011]
[1772743168513,3.79160556,89.364,89.291,3.78057189]
[1772743168813,3.97747109,89.345,89.291,3.78057189]
[1772743169410,3.97747109,89.339,89.274,10.08]
[1772743170010,3.97747109,89.339,89.275,3.94475225]
[1772743170309,3.97747109,89.339,89.276,10.08]
[1772743170504,3.97747109,89.339,89.275,3.94475225]
[1772743170709,9.46326011,89.35,89.275,3.94475225]
[1772743170710,3.96100285,89.327,89.275,3.94475225]
[1772743171108,3.96100285,89.327,89.275,14.02475225]
[1772743171310,3.96100285,89.327,89.276,3.94475225]
[1772743172110,3.96100285,89.327,89.278,10.08]
[1772743172608,3.96100285,89.327,89.279,3.94475225]
[1772743173107,9.46326011,89.35,89.279,3.94475225]
[1772743173411,9.46326011,89.39,89.291,3.94475225]
[1772743173412,3.96100285,89.389,89.291,3.94475225]
[1772743174101,10.071,89.361,89.304,3.94475225]
[1772743175410,10.071,89.361,89.308,10.076]
[1772743176706,14.03200285,89.361,89.308,10.076]
[1772743177608,3.96100285,89.358,89.304,3.94475225]
[1772743178311,3.96100285,89.355,89.304,3.94475225]
[1772743178506,3.96100285,89.355,89.291,10.078]
[1772743178706,3.96100285,89.341,89.289,3.94475225]
[1772743179312,10.073,89.338,89.289,14.02375225]
[1772743180310,3.96100285,89.341,89.295,10.078]
[1772743180611,3.96100285,89.341,89.29,3.94475225]
[1772743183518,3.96100285,89.34,89.29,14.02275225]
[1772743185014,3.96100285,89.34,89.297,10.078]
[1772743185416,3.96100285,89.34,89.291,3.94475225]
[1772743186016,3.96100285,89.338,89.291,3.94475225]
[1772743188418,3.96100285,89.338,89.299,10.077]
[1772743188613,3.96100285,89.338,89.291,3.94475225]
[1772743189421,14.03400285,89.336,89.291,14.02275225]
[1772743189621,3.96100285,89.335,89.291,14.02275225]
[1772743191520,14.03500285,89.334,89.291,14.02275225]
[1772743191727,3.96100285,89.334,89.291,3.94475225]
[1772743192525,3.96100285,89.334,89.29,3.53004632]
[1772743193425,3.96100285,89.324,89.271,3.94475225]
[1772743193825,3.96100285,89.299,89.253,3.94475225]
[1772743194828,3.53004632,89.29,89.253,3.94475225]
[1772743195025,3.53004632,89.29,89.24,17.55879857]
[1772743195422,3.53004632,89.29,89.241,3.94475225]
[1772743195823,7.49104917,89.31,89.251,3.94475225]
[1772743196024,7.49104917,89.31,89.261,3.94475225]
[1772743196426,3.96100285,89.31,89.261,3.94475225]
[1772743197328,3.96100285,89.31,89.262,3.94475225]
[1772743198831,3.96100285,89.31,89.266,3.94475225]
[1772743199131,10.075,89.321,89.266,3.94475225]
[1772743200324,3.96100285,89.324,89.277,3.82910807]
[1772743200939,10.075,89.323,89.277,3.82910807]
[1772743201434,3.98290411,89.322,89.277,3.82910807]
[1772743201733,3.98290411,89.305,89.253,3.82910807]
[1772743202431,10.078,89.298,89.253,3.82910807]
[1772743202628,3.98290411,89.305,89.253,3.82910807]
[1772743203030,14.05990411,89.304,89.254,10.083]
[1772743203331,3.98290411,89.304,89.253,3.82910807]
[1772743204534,3.98290411,89.304,89.264,10.081]
[1772743204835,3.98290411,89.323,89.265,3.82910807]
[1772743205837,3.98290411,89.323,89.276,3.82910807]
[1772743206031,3.98290411,89.349,89.261,3.82910807]
[1772743206335,3.98290411,89.322,89.264,10.081]
[1772743207136,14.05790411,89.318,89.271,10.081]
[1772743207836,3.98290411,89.318,89.277,10.08]
[1772743208438,3.98290411,89.318,89.261,3.82910807]
[1772743209436,3.98290411,89.316,89.263,10.082]
[1772743210235,9.46196727,89.33,89.261,3.82910807]
[1772743210236,3.98290411,89.312,89.261,3.82910807]
[1772743210543,3.98290411,89.312,89.246,3.82910807]
[1772743211437,3.98290411,89.299,89.247,10.083]
[1772743212135,3.98290411,89.299,89.25,3.82910807]
[1772743212534,3.98290411,89.329,89.25,3.82910807]
[1772743212933,10.076,89.315,89.262,13.91110807]
[1772743213139,10.076,89.315,89.263,3.82910807]
[1772743214643,10.076,89.315,89.267,10.081]
[1772743214842,10.076,89.309,89.263,3.82910807]
[1772743215437,14.05890411,89.309,89.263,3.82910807]
[1772743216036,10.076,89.309,89.263,3.82910807]
[1772743216339,3.98290411,89.306,89.263,3.82910807]
[1772743216542,3.98290411,89.306,89.259,10.082]
[1772743217545,10.077,89.304,89.259,10.082]
[1772743217846,3.98290411,89.306,89.266,10.081]
[1772743218037,3.98290411,89.306,89.249,3.82910807]
[1772743219448,3.98290411,89.305,89.249,3.82910807]
[1772743220648,10.078,89.297,89.251,13.91210807]
[1772743221648,3.98290411,89.296,89.251,13.91210807]
[1772743221848,10.078,89.293,89.251,13.91210807]
[1772743222745,10.078,89.293,89.251,3.82910807]
[1772743222746,10.079,89.289,89.251,3.82910807]
[1772743223145,10.079,89.289,89.24,3.53329037]
[1772743223346,3.98290411,89.288,89.242,10.084]
[1772743223551,3.98290411,89.279,89.223,3.82910807]
[1772743224348,3.98290411,89.279,89.229,10.085]
[1772743224539,7.51619448,89.29,89.241,3.82910807]
[1772743224738,3.98290411,89.289,89.241,3.82910807]
[1772743225341,3.53329037,89.28,89.241,3.82910807]
[1772743225643,7.51619448,89.28,89.23,7.36239844]
[1772743225844,7.51619448,89.29,89.24,3.53329037]
[1772743226044,3.98290411,89.289,89.24,3.53329037]
[1772743226747,3.98290411,89.289,89.231,3.82910807]
[1772743227343,3.98290411,89.283,89.234,10.085]
[1772743227742,3.98290411,89.283,89.235,3.82910807]
[1772743227947,3.98290411,89.283,89.237,3.82910807]
[1772743228143,3.53329037,89.29,89.241,3.82910807]
[1772743228343,3.92891619,89.29,89.241,3.82910807]
[1772743228552,3.92891619,89.29,89.251,3.70111802]
[1772743228748,20.146,89.342,89.261,3.70111802]
[1772743228749,3.92891619,89.308,89.261,3.70111802]
[1772743229250,3.92891619,89.301,89.25,3.53329037]
[1772743229443,7.46220656,89.29,89.251,3.70111802]
[1772743229647,7.46220656,89.29,89.24,3.53329037]
[1772743229648,3.92891619,89.289,89.24,3.53329037]
[1772743229844,14.00791619,89.289,89.245,10.084]
[1772743233748,14.00791619,89.289,89.245,14.0657656]
[1772743236856,3.53329037,89.3,89.251,3.9817656]
[1772743237051,3.86625697,89.315,89.27,3.53329037]
[1772743237256,3.86625697,89.315,89.271,3.9817656]
[1772743238156,3.86625697,89.313,89.255,3.9817656]
[1772743238461,3.86625697,89.313,89.245,13.81907355]
[1772743238462,3.53329037,89.31,89.26,7.51505597]
[1772743238863,3.53329037,89.31,89.261,3.9817656]
[1772743239364,3.86625697,89.309,89.261,3.9817656]
[1772743240361,10.077,89.302,89.261,3.9817656]
[1772743242466,10.077,89.302,89.262,10.082]
[1772743242663,13.94225697,89.309,89.262,10.082]
[1772743243263,13.94225697,89.309,89.27,3.53329037]
[1772743243767,3.86625697,89.322,89.28,3.53329037]
[1772743244067,3.86625697,89.319,89.272,3.9817656]
[1772743245370,3.86625697,89.313,89.272,3.9817656]
[1772743246572,3.86625697,89.313,89.273,10.08]
[1772743247366,10.076,89.31,89.272,3.9817656]
[1772743247865,3.86625697,89.339,89.29,7.51505597]
[1772743248065,3.86625697,89.339,89.3,3.53329037]
[1772743248570,3.86625697,89.339,89.29,3.53329037]
[1772743249073,3.86625697,89.336,89.29,3.53329037]
[1772743250474,3.86625697,89.333,89.29,3.53329037]
[1772743254473,3.53329037,89.34,89.284,3.9817656]
[1772743254474,3.53329037,89.33,89.284,3.9817656]
[1772743254778,3.86625697,89.329,89.284,3.9817656]
[1772743255168,3.86625697,89.329,89.288,3.9817656]
[1772743256378,3.86625697,89.329,89.289,10.079]
[1772743256781,3.86625697,89.329,89.289,14.0607656]
[1772743258273,3.86625697,89.329,89.289,3.9817656]
[1772743258478,3.86625697,89.329,89.274,3.9817656]
[1772743259782,3.73103644,89.327,89.282,10.079]
[1772743259982,3.73103644,89.319,89.274,3.9817656]
[1772743260177,10.43694661,89.369,89.107,90.65114387]
[1772743260178,3.53329037,89.3,89.251,3.73311721]
[1772743260381,3.73103644,89.314,89.27,3.53329037]
[1772743260581,3.73103644,89.329,89.281,3.73311721]
[1772743260979,3.73103644,89.318,89.28,3.53329037]
[1772743261175,3.73103644,89.318,89.27,3.53329037]
[1772743261386,3.73103644,89.318,89.28,3.53329037]
[1772743262586,3.73103644,89.318,89.271,3.73311721]
[1772743263083,3.73103644,89.318,89.273,10.08]
[1772743263281,3.73103644,89.309,89.26,3.53329037]
[1772743263687,3.73103644,89.309,89.26,7.26640758]
[1772743264588,3.53329037,89.31,89.26,7.26640758]
[1772743264589,3.73103644,89.307,89.26,7.26640758]
[1772743266090,3.73103644,89.307,89.27,3.53329037]
[1772743266391,3.73103644,89.307,89.262,3.73311721]
[1772743267493,13.80803644,89.305,89.262,3.73311721]
[1772743268088,13.80803644,89.303,89.262,3.73311721]
[1772743268288,3.73103644,89.302,89.262,3.73311721]
[1772743269092,3.73103644,89.3,89.262,3.73311721]
[1772743270502,3.73103644,89.29,89.249,3.73311721]
[1772743270687,3.73103644,89.29,89.25,3.53329037]
[1772743270891,3.73103644,89.29,89.251,3.73311721]
[1772743272490,3.73103644,89.29,89.252,3.73311721]
[1772743272694,10.078,89.298,89.26,3.53329037]
[1772743273498,10.078,89.298,89.254,10.083]
[1772743273499,10.078,89.292,89.254,10.083]
[1772743273799,3.73103644,89.298,89.254,13.81611721]
[1772743275395,10.078,89.295,89.254,13.81611721]
[1772743275898,3.73103644,89.295,89.246,13.81611721]
[1772743276089,3.73103644,89.295,89.247,3.73311721]
[1772743276392,3.73103644,89.295,89.251,3.73311721]
[1772743277397,10.078,89.294,89.252,10.083]
[1772743278088,10.078,89.294,89.253,3.73311721]
[1772743278294,3.73103644,89.295,89.255,3.73311721]
[1772743279201,13.80903644,89.295,89.256,10.082]
[1772743280000,10.077,89.305,89.263,3.73311721]
[1772743280204,3.73103644,89.304,89.263,3.73311721]
[1772743280395,10.43694661,89.344,89.263,3.73311721]
[1772743280396,3.73103644,89.299,89.263,3.73311721]
[1772743282402,10.078,89.298,89.263,3.73311721]
[1772743282995,3.53329037,89.31,89.263,3.73311721]
[1772743283397,7.26432681,89.31,89.263,3.73311721]
[1772743283705,3.73103644,89.302,89.251,3.73311721]
[1772743284101,3.53329037,89.3,89.251,3.73311721]
[1772743284301,3.73103644,89.299,89.251,3.73311721]
[1772743285400,13.80903644,89.298,89.251,13.81611721]
[1772743285703,3.73103644,89.297,89.251,13.81611721]
[1772743285907,3.73103644,89.297,89.252,3.73311721]
[1772743286101,3.73103644,89.297,89.25,3.53332351]
[1772743286102,3.73103644,89.297,89.261,3.73311721]
[1772743288395,10.078,89.295,89.261,3.73311721]
[1772743288697,3.73103644,89.297,89.261,3.73311721]
[1772743290206,11.18,89.344,89.25,7.25369651]
[1772743290207,3.67078577,89.295,89.25,7.25369651]
[1772743290806,3.67078577,89.295,89.226,3.720373]
[1772743291005,3.53332351,89.29,89.241,3.720373]
[1772743291307,3.67078577,89.291,89.241,3.720373]
[1772743291606,3.67078577,89.291,89.251,3.720373]
[1772743293409,13.74878577,89.291,89.251,3.720373]
[1772743293812,3.67078577,89.291,89.252,3.720373]
[1772743294612,10.079,89.29,89.252,3.720373]
[1772743295717,10.08,89.28,89.239,13.804373]
[1772743295914,10.08,89.28,89.24,3.53332351]
[1772743296112,3.67078577,89.269,89.226,3.720373]
[1772743297319,10.081,89.267,89.226,3.720373]
[1772743297715,3.67078577,89.269,89.226,3.720373]
[1772743298116,3.67078577,89.267,89.22,3.53332351]
[1772743298319,3.67078577,89.267,89.23,3.53332351]
[1772743299519,7.20410928,89.28,89.235,3.720373]
[1772743299713,3.67078577,89.28,89.235,3.720373]
[1772743300214,7.20410928,89.28,89.235,3.720373]
[1772743300416,3.67078577,89.279,89.235,3.720373]
[1772743300717,3.67078577,89.277,89.235,3.720373]
[1772743301717,10.081,89.268,89.235,3.720373]
[1772743301918,3.67078577,89.267,89.222,3.720373]
[1772743303120,3.67078577,89.267,89.23,3.53332351]
[1772743303923,3.67078577,89.267,89.231,3.720373]
[1772743306325,3.67078577,89.266,89.22,3.53332351]
[1772743306519,3.67078577,89.266,89.217,3.720373]
[1772743307420,3.67078577,89.258,89.217,3.720373]
[1772743307614,3.67078577,89.258,89.221,3.720373]
[1772743308518,10.082,89.257,89.221,3.720373]
[1772743311025,3.67078577,89.258,89.221,3.720373]
[1772743311526,13.75278577,89.258,89.221,3.720373]
[1772743312327,3.67078577,89.258,89.223,13.806373]
[1772743313218,3.67078577,89.272,89.22,3.53332351]
[1772743313422,3.67078577,89.269,89.22,3.53332351]
[1772743314120,10.082,89.263,89.221,10.086]
[1772743314520,3.67078577,89.269,89.231,3.720373]
[1772743314933,3.67078577,89.269,89.234,10.085]
[1772743318929,3.67078577,89.269,89.231,3.720373]
[1772743319724,3.71195796,89.266,89.23,3.53332351]
[1772743319922,3.71195796,89.266,89.22,7.15040063]
[1772743320431,3.71195796,89.278,89.231,3.61707712]
[1772743321122,3.71195796,89.278,89.177,27.42210922]
[1772743321123,3.71195796,89.29,89.25,3.53332351]
[1772743321325,3.71195796,89.332,89.261,3.61707712]
[1772743321525,3.53332351,89.32,89.271,3.61707712]
[1772743321725,3.71195796,89.319,89.27,3.53332351]
[1772743323828,3.71195796,89.309,89.245,13.81907355]
[1772743324030,3.71195796,89.309,89.261,3.61707712]
[1772743324429,3.71195796,89.309,89.263,3.61707712]
[1772743324430,10.077,89.306,89.263,3.61707712]
[1772743324729,3.71195796,89.309,89.27,3.53332351]
[1772743324937,3.71195796,89.322,89.28,7.15040063]
[1772743325530,10.075,89.321,89.28,7.15040063]
[1772743325730,3.71195796,89.32,89.28,7.15040063]
[1772743325935,7.24528147,89.32,89.28,7.15040063]
[1772743326131,3.71195796,89.319,89.27,3.53332351]
[1772743326536,13.78695796,89.318,89.271,3.61707712]
[1772743326736,3.71195796,89.317,89.271,3.61707712]
[1772743327432,3.71195796,89.317,89.271,13.69807712]
[1772743328838,3.53332351,89.28,89.234,3.61707712]
[1772743329137,3.53332351,89.28,89.172,156.99]
[1772743329138,3.53332351,89.29,89.241,3.61707712]
[1772743330238,1.19117972,89.279,89.23,3.53332351]
[1772743330439,1.19117972,89.279,89.221,3.61707712]
[1772743330744,1.40300636,89.31,89.26,3.53332351]
[1772743330944,1.40300636,89.309,89.26,3.53332351]
[1772743331943,1.40300636,89.289,89.24,3.53332351]
[1772743332542,1.40300636,89.289,89.24,7.15040063]
[1772743332737,1.40300636,89.289,89.25,3.53332351]
[1772743333543,10.079,89.288,89.25,3.53332351]
[1772743334645,10.079,89.288,89.241,3.61707712]
[1772743337743,4.89891083,89.31,89.261,3.61707712]
[1772743337940,1.36558732,89.309,89.261,3.61707712]
[1772743338543,1.36558732,89.309,89.263,3.61707712]
[1772743338744,3.53332351,89.32,89.271,3.61707712]
[1772743339134,10.075,89.318,89.271,3.61707712]
[1772743339337,1.3669927,89.317,89.271,3.61707712]
[1772743340538,10.076,89.311,89.271,3.61707712]
[1772743340843,3.53332351,89.31,89.271,3.61707712]
[1772743341245,10.077,89.308,89.271,3.61707712]
[1772743341446,1.32339527,89.299,89.255,3.61707712]
[1772743341843,1.32339527,89.299,89.26,3.53332351]
[1772743342544,10.078,89.297,89.26,3.53332351]
[1772743344542,1.43316927,89.329,89.28,3.53332351]
[1772743345045,3.53332351,89.32,89.271,3.61707712]
[1772743345241,1.43316927,89.319,89.271,3.61707712]
[1772743346051,1.43316927,89.319,89.272,3.61707712]
[1772743347447,1.43316927,89.319,89.273,13.69707712]
[1772743347955,10.075,89.318,89.273,3.61707712]
[1772743349053,10.076,89.309,89.273,3.61707712]
[1772743349253,1.44192756,89.318,89.273,3.61707712]
[1772743350555,10.076,89.317,89.273,3.61707712]
[1772743351455,1.44192756,89.318,89.281,3.74914234]
[1772743351656,10.075,89.324,89.281,3.74914234]
[1772743352355,1.43519607,89.347,89.291,3.74914234]
[1772743352556,1.43519607,89.339,89.3,3.53098722]
[1772743353557,10.073,89.338,89.3,3.53098722]
[1772743354054,11.50919607,89.326,89.278,3.74914234]
[1772743354258,1.43519607,89.325,89.28,3.53098722]
[1772743354858,1.43519607,89.325,89.28,7.28012956]
[1772743355049,1.43519607,89.325,89.281,3.74914234]
[1772743357057,10.075,89.324,89.281,3.74914234]
[1772743360057,1.40608917,89.323,89.281,3.74914234]
[1772743360263,1.40608917,89.319,89.281,3.74914234]
[1772743360959,11.48108917,89.319,89.281,3.74914234]
[1772743361555,1.51331819,89.299,89.255,3.74914234]
[1772743362362,1.51331819,89.289,89.242,3.74914234]
[1772743362959,1.51331819,89.289,89.245,3.74914234]
[1772743363867,10.078,89.294,89.252,13.83214234]
[1772743364064,10.078,89.294,89.252,3.74914234]
[1772743365568,3.53098722,89.3,89.252,3.74914234]
[1772743365569,10.079,89.286,89.252,3.74914234]
[1772743366564,10.078,89.294,89.253,3.74914234]
[1772743367559,1.50575822,89.299,89.253,3.74914234]
[1772743367763,10.079,89.287,89.253,3.74914234]
[1772743367966,1.50575822,89.299,89.24,7.28012956]
[1772743368165,1.47146006,89.289,89.241,3.74914234]
[1772743369062,10.08,89.281,89.241,3.74914234]
[1772743369568,10.08,89.275,89.231,3.74914234]
[1772743370465,10.08,89.275,89.24,3.53098722]
[1772743370867,1.47215937,89.277,89.24,3.53098722]
[1772743372370,1.47215937,89.277,89.24,13.61498722]
[1772743373168,10.079,89.283,89.25,3.53098722]
[1772743373369,10.079,89.283,89.243,3.74914234]
[1772743374366,10.079,89.283,89.244,13.83314234]
[1772743374564,1.4691709,89.304,89.261,3.74914234]
[1772743376169,13.60698722,89.31,89.265,3.74914234]
[1772743376473,1.4691709,89.299,89.251,3.74914234]
[1772743376969,10.078,89.296,89.252,10.083]
[1772743379572,10.078,89.296,89.253,3.74914234]
[1772743380068,10.078,89.296,89.254,10.083]
[1772743380269,1.43604521,89.329,89.271,3.64000623]
[1772743380669,3.53098722,89.32,89.271,3.64000623]
[1772743380868,1.43563025,89.319,89.28,3.53098722]
[1772743381174,1.43563025,89.339,89.281,3.64000623]
[1772743381473,1.43563025,89.329,89.281,3.64000623]
[1772743382464,10.075,89.322,89.281,3.64000623]
[1772743383477,10.076,89.316,89.281,3.64000623]
[1772743383673,1.43565545,89.319,89.27,7.17099345]
[1772743383872,1.43565545,89.319,89.271,3.64000623]
[1772743384175,1.43565545,89.319,89.213,27.51596376]
[1772743384176,1.43565545,89.303,89.261,3.64000623]
[1772743384475,1.43808637,89.279,89.228,13.75830134]
[1772743384775,3.53098722,89.27,89.226,3.64000623]
[1772743385569,1.43808637,89.279,89.231,3.64000623]
[1772743386479,10.08,89.278,89.231,3.64000623]
[1772743387770,10.081,89.271,89.231,3.64000623]
[1772743391076,1.43808637,89.279,89.19,20.18]
[1772743391077,10.08,89.279,89.241,3.64000623]
[1772743391384,1.43338562,89.289,89.241,3.64000623]
[1772743391575,10.08,89.279,89.241,3.64000623]
[1772743391777,1.43338562,89.289,89.241,3.64000623]
[1772743392974,10.08,89.28,89.241,3.64000623]
[1772743393184,4.95923945,89.27,89.225,3.64000623]
[1772743393981,1.42825223,89.269,89.225,3.64000623]
[1772743394484,10.081,89.267,89.225,3.64000623]
[1772743397178,1.40426011,89.263,89.211,13.72700623]
[1772743397482,156.722,89.326,89.2,3.53098722]
[1772743397483,1.40426011,89.249,89.2,3.53098722]
[1772743397680,1.40426011,89.249,89.21,3.53098722]
[1772743397882,11.48726011,89.249,89.21,3.53098722]
[1772743398078,1.40426011,89.249,89.21,3.53098722]
[1772743398278,1.40426011,89.249,89.201,3.64000623]
[1772743399388,10.084,89.242,89.201,3.64000623]
[1772743400186,1.40426011,89.249,89.202,3.64000623]
[1772743400480,1.40426011,89.249,89.21,3.53098722]
[1772743400676,1.40426011,89.249,89.202,3.64000623]
[1772743401077,1.40426011,89.249,89.21,3.53098722]
[1772743401286,1.40426011,89.249,89.206,3.64000623]
[1772743402177,3.53098722,89.26,89.216,3.64000623]
[1772743402778,1.37203868,89.261,89.221,3.64000623]
[1772743403181,1.37189414,89.259,89.221,3.64000623]
[1772743407401,13.92855801,89.309,89.201,3.64000623]
[1772743407402,1.36901444,89.249,89.201,3.64000623]
[1772743407802,10.084,89.246,89.202,3.64000623]
[1772743408003,3.53098722,89.26,89.202,3.64000623]
[1772743408204,1.36901444,89.259,89.211,3.64000623]
[1772743408406,3.53098722,89.27,89.221,3.9844028]
[1772743408598,1.36978464,89.289,89.231,3.9844028]
[1772743409406,10.08,89.279,89.232,3.9844028]
[1772743410308,10.081,89.272,89.232,3.9844028]
[1772743411408,1.35399876,89.268,89.223,10.086]
[1772743411603,1.35399876,89.268,89.224,3.7454934]
[1772743412306,10.081,89.266,89.224,3.7454934]
[1772743413704,1.35399876,89.268,89.226,3.7454934]
[1772743417112,11.43499876,89.268,89.226,3.7454934]
[1772743417813,1.35399876,89.268,89.226,3.7454934]
[1772743418414,10.082,89.259,89.226,3.7454934]
[1772743418614,3.53530561,89.26,89.214,3.7454934]
[1772743418615,1.40139293,89.258,89.214,3.7454934]
[1772743418805,3.53530561,89.25,89.203,3.7454934]
[1772743419415,11.48339293,89.258,89.211,10.087]
[1772743419612,1.40139293,89.257,89.211,10.087]
[1772743419812,1.40139293,89.257,89.21,3.53530561]
[1772743420314,3.53530561,89.25,89.203,3.7454934]
[1772743420615,1.27775772,89.239,89.188,3.7454934]
[1772743420815,1.27775772,89.239,89.19,7.28079901]
[1772743421012,1.27775772,89.239,89.191,3.7454934]
[1772743421815,1.27775772,89.239,89.194,3.7454934]
[1772743422015,3.53530561,89.25,89.2,3.53530561]
[1772743422219,3.53530561,89.25,89.201,3.7454934]
[1772743422716,4.82123752,89.25,89.201,3.7454934]
[1772743422916,1.28593191,89.28,89.221,3.7454934]
[1772743423114,1.28593191,89.28,89.168,156.998]
[1772743423115,1.28593191,89.28,89.231,3.7454934]
[1772743423311,1.28593191,89.28,89.24,3.53530561]
[1772743423512,4.82123752,89.28,89.231,3.7454934]
[1772743424114,10.08,89.279,89.233,3.7454934]
[1772743424319,1.28593191,89.278,89.22,3.53530561]
[1772743424618,1.31060149,89.269,89.221,3.7454934]
[1772743425716,10.082,89.259,89.221,3.7454934]
[1772743426610,10.081,89.266,89.221,3.7454934]
[1772743431422,1.31060149,89.269,89.221,3.7454934]
[1772743431922,10.082,89.26,89.221,3.7454934]
[1772743432719,13.61730561,89.26,89.221,3.7454934]
[1772743433316,10.081,89.268,89.222,3.7454934]
[1772743433823,3.53530561,89.27,89.222,3.7454934]
[1772743433824,1.37864912,89.267,89.222,3.7454934]
[1772743434921,10.082,89.259,89.222,3.7454934]
[1772743435125,1.36307827,89.258,89.21,3.53530561]
[1772743435322,1.36307827,89.258,89.21,7.28079901]
[1772743435623,1.36307827,89.258,89.211,3.7454934]
[1772743436023,1.36307827,89.258,89.213,3.7454934]
[1772743437528,10.082,89.257,89.219,10.086]
[1772743440022,20.156,89.295,89.187,20.66125332]
[1772743440023,3.53530561,89.24,89.196,3.96418446]
[1772743440219,3.53530561,89.25,89.201,3.96418446]
[1772743440423,1.35107868,89.269,89.211,3.96418446]
[1772743440619,10.081,89.267,89.221,3.96418446]
[1772743440918,10.081,89.267,89.194,20.66125332]
[1772743440919,1.35107868,89.279,89.231,3.96418446]
[1772743441625,1.35107868,89.259,89.21,3.53530561]
[1772743441831,4.88638429,89.27,89.221,3.96418446]
[1772743442227,10.081,89.266,89.222,14.05018446]
[1772743442733,10.082,89.259,89.222,3.96418446]
[1772743443232,10.082,89.259,89.21,3.53530561]
[1772743443233,11.56840509,89.259,89.21,3.53530561]
[1772743443433,3.53530561,89.26,89.21,3.53530561]
[1772743443434,10.083,89.254,89.21,3.53530561]
[1772743443726,10.083,89.254,89.211,3.96418446]
[1772743444328,1.48640509,89.253,89.211,3.96418446]
[1772743445232,10.083,89.252,89.211,3.96418446]
[1772743447639,1.5732158,89.244,89.2,3.53530561]
[1772743447834,1.5732158,89.244,89.201,3.96418446]
[1772743448942,1.5693092,89.229,89.187,3.96418446]
[1772743449235,3.53530561,89.23,89.187,3.96418446]
[1772743450342,1.5693092,89.239,89.19,7.49949007]
[1772743450535,1.57207241,89.249,89.201,3.96418446]
[1772743451233,1.57207241,89.239,89.185,3.96418446]
[1772743452442,11.62962635,89.238,89.187,3.96418446]
[1772743452743,1.54562635,89.237,89.187,3.96418446]
[1772743453345,10.086,89.227,89.187,3.96418446]
[1772743455147,10.085,89.235,89.19,3.53530561]
[1772743455447,10.085,89.235,89.191,3.96418446]
[1772743457342,1.54793517,89.234,89.191,3.96418446]
[1772743458248,10.085,89.233,89.191,3.96418446]
[1772743460652,10.086,89.228,89.191,3.96418446]
[1772743461148,3.53530561,89.23,89.191,3.96418446]
[1772743461952,1.54441085,89.232,89.191,3.96418446]
[1772743462451,10.085,89.231,89.191,3.96418446]
[1772743463158,10.086,89.222,89.191,3.96418446]
[1772743463354,3.53530561,89.23,89.191,3.96418446]
[1772743463652,10.085,89.229,89.191,3.96418446]
[1772743464860,1.54441085,89.232,89.191,3.96418446]
[1772743465557,10.085,89.231,89.191,3.96418446]
[1772743466361,10.083,89.246,89.202,3.96418446]
[1772743466660,11.69169433,89.246,89.202,3.96418446]
[1772743466859,1.60869433,89.245,89.202,3.96418446]
[1772743467459,1.60869433,89.259,89.211,3.96418446]
[1772743468363,10.082,89.257,89.211,14.05118446]
[1772743468562,1.61973701,89.256,89.211,14.05118446]
[1772743469561,1.61973701,89.256,89.212,3.92054852]
[1772743469758,1.61973701,89.256,89.22,3.53530561]
[1772743470661,1.61973701,89.256,89.214,3.62966095]
[1772743471662,1.63305897,89.268,89.221,3.62966095]
[1772743473565,1.63047911,89.267,89.221,3.62966095]
[1772743473956,5.16625242,89.28,89.231,3.62966095]